[Event "Chess Festival Groningen 2023 | A"]
[Site "Groningen, Netherlands"]
[Date "2023.12.26"]
[Round "5.13"]
[White "De Boer, Eelke"]
[Black "Adamovics, Aleksejs"]
[Result "1-0"]
[TimeControl "90min/40moves + 30min + 30sec/move"]
[WhiteElo "2346"]
[BlackElo "2015"]

1. e4 {[%clk 01:30:57]} {[%emt 00:00:02]} c5 {[%clk 01:30:52]} {[%emt
00:00:09]} 2. Nf3 {[%clk 01:31:16]} {[%emt 00:00:11]} Nc6 {[%clk 01:31:16]}
{[%emt 00:00:06]} 3. d4 {[%clk 01:31:39]} {[%emt 00:00:06]} cxd4 {[%clk
01:31:42]} {[%emt 00:00:04]} 4. Nxd4 {[%emt 00:00:12]} Nf6 {[%clk 01:32:08]} 5.
Nc3 {[%clk 01:32:01]} {[%emt 00:00:29]} e5 {[%clk 01:32:33]} {[%emt 00:00:05]}
6. Ndb5 {[%clk 01:32:25]} {[%emt 00:00:07]} d6 {[%clk 01:32:58]} {[%emt
00:00:05]} 7. Bg5 {[%clk 01:32:47]} {[%emt 00:00:08]} a6 {[%clk 01:33:25]}
{[%emt 00:00:03]} 8. Na3 {[%clk 01:33:07]} {[%emt 00:00:10]} b5 {[%clk
01:33:49]} {[%emt 00:00:06]} 9. Nab1 {[%clk 01:33:29]} {[%emt 00:00:08]} Be7
{[%clk 01:32:21]} {[%emt 00:01:58]} 10. Bxf6 {[%clk 01:30:11]} {[%emt
00:03:48]} Bxf6 {[%clk 01:32:43]} {[%emt 00:00:09]} 11. a4 {[%clk 01:30:36]}
{[%emt 00:00:05]} b4 {[%clk 01:31:38]} {[%emt 00:01:36]} 12. Nd5 {[%clk
01:30:52]} {[%emt 00:00:13]} O-O {[%clk 01:31:22]} {[%emt 00:00:45]} 13. Bc4
{[%clk 01:31:08]} {[%emt 00:00:14]} g6 {[%clk 01:28:31]} {[%emt 00:03:21]} 14.
O-O {[%clk 01:29:43]} {[%emt 00:01:55]} Kh8 {[%clk 01:25:29]} {[%emt 00:03:33]}
15. c3 {[%clk 01:21:03]} {[%emt 00:09:10]} Rb8 {[%clk 01:19:24]} {[%emt
00:06:35]} 16. cxb4 {[%clk 01:18:11]} {[%emt 00:03:22]} Nxb4 {[%clk 01:18:11]}
{[%emt 00:01:43]} 17. Nxb4 {[%clk 01:18:19]} {[%emt 00:00:23]} Rxb4 {[%clk
01:18:38]} {[%emt 00:00:02]} 18. b3 {[%clk 01:18:37]} {[%emt 00:00:12]} Bg7
{[%clk 01:01:59]} {[%emt 00:17:09]} 19. Nc3 {[%clk 01:07:04]} {[%emt 00:12:03]}
f5 {[%clk 00:49:55]} {[%emt 00:12:35]} 20. Qe2 {[%clk 01:01:56]} {[%emt
00:05:38]} fxe4 {[%clk 00:42:05]} {[%emt 00:08:20]} 21. Rad1 {[%clk 01:01:34]}
{[%emt 00:00:50]} Bb7 {[%clk 00:39:37]} {[%emt 00:02:59]} 22. Nd5 {[%clk
00:54:16]} {[%emt 00:07:47]} Bxd5 {[%clk 00:38:14]} {[%emt 00:01:54]} 23. Rxd5
{[%clk 00:54:37]} {[%emt 00:00:09]} a5 {[%clk 00:35:59]} {[%emt 00:02:45]} 24.
Qxe4 {[%clk 00:52:03]} {[%emt 00:03:03]} Rf4 {[%clk 00:30:06]} {[%emt
00:06:24]} 25. Qd3 {[%emt 00:07:49]} Rb6 {[%clk 00:25:47]} 26. Qd2 {[%clk
00:43:38]} {[%emt 00:06:23]} Rb8 {[%clk 00:19:15]} {[%emt 00:07:03]} 27. Qxa5
{[%clk 00:39:18]} {[%emt 00:04:50]} Qg5 {[%clk 00:17:35]} {[%emt 00:02:09]} 28.
Rxd6 {[%clk 00:34:56]} {[%emt 00:04:53]} Rbf8 {[%clk 00:16:23]} {[%emt
00:01:42]} 29. Qd2 {[%clk 00:23:35]} {[%emt 00:11:50]} Bh6 {[%clk 00:15:08]}
{[%emt 00:01:45]} 30. g3 {[%clk 00:19:16]} {[%emt 00:04:49]} Qh5 {[%emt
00:09:20]} 31. Rd8 {[%clk 00:17:24]} Rd4 {[%clk 00:05:26]} {[%emt 00:03:45]} 32.
Rxf8+ {[%clk 00:17:36]} {[%emt 00:00:19]} Bxf8 {[%clk 00:05:54]} {[%emt
00:00:02]} 33. Qa5 {[%clk 00:14:06]} {[%emt 00:03:59]} Qf5 {[%clk 00:05:20]}
{[%emt 00:01:04]} 34. Re1 {[%clk 00:12:34]} {[%emt 00:02:02]} Bd6 {[%clk
00:05:40]} {[%emt 00:00:11]} 35. Kg2 {[%clk 00:10:55]} {[%emt 00:02:08]} Kg7
{[%clk 00:05:35]} {[%emt 00:00:35]} 36. Re2 {[%clk 00:09:02]} {[%emt 00:02:23]}
h5 {[%clk 00:05:12]} {[%emt 00:00:53]} 37. Qa7+ {[%clk 00:08:04]} {[%emt
00:01:28]} Kh6 {[%clk 00:04:26]} {[%emt 00:01:17]} 38. Qf7 {[%clk 00:05:18]}
{[%emt 00:03:16]} Qg5 {[%clk 00:04:48]} {[%emt 00:00:07]} 39. h4 {[%clk
00:04:21]} {[%emt 00:01:27]} Qd8 {[%clk 00:04:05]} {[%emt 00:01:13]} 40. Qf3
{[%clk 00:01:51]} {[%emt 00:03:00]} Kg7 {[%clk 00:03:30]} {[%emt 00:01:06]} 41.
a5 {[%clk 00:24:38]} {[%emt 00:07:43]} g5 {[%clk 00:29:03]} {[%emt 00:04:57]}
42. hxg5 {[%clk 00:21:31]} {[%emt 00:03:37]} Qxg5 {[%clk 00:29:07]} {[%emt
00:00:26]} 43. a6 {[%clk 00:19:46]} {[%emt 00:02:15]} h4 {[%clk 00:29:16]}
{[%emt 00:00:22]} 44. a7 {[%clk 00:18:49]} {[%emt 00:01:27]} hxg3 {[%clk
00:29:36]} {[%emt 00:00:09]} 45. Qxg3 {[%clk 00:18:35]} {[%emt 00:00:43]} 1-0

[Event "Chess Festival Groningen 2023 | A"]
[Site "Groningen, Netherlands"]
[Date "2023.12.26"]
[Round "5.14"]
[White "Kovchan, Alexander"]
[Black "Jacobs, Florian"]
[Result "1-0"]
[TimeControl "90min/40moves + 30min + 30sec/move"]
[WhiteElo "2491"]
[BlackElo "2218"]

1. c4 {[%clk 01:30:55]} {[%emt 00:00:03]} e6 {[%clk 01:30:48]} {[%emt
00:00:12]} 2. Nf3 {[%clk 01:29:20]} {[%emt 00:02:05]} Nf6 {[%clk 01:31:02]}
{[%emt 00:00:17]} 3. d4 {[%clk 01:27:20]} {[%emt 00:02:30]} d5 {[%clk
01:31:22]} {[%emt 00:00:10]} 4. g3 {[%clk 01:27:13]} {[%emt 00:00:36]} Bb4+
{[%clk 01:31:45]} {[%emt 00:00:08]} 5. Bd2 {[%clk 01:27:30]} {[%emt 00:00:13]}
Be7 {[%clk 01:32:08]} {[%emt 00:00:06]} 6. Bg2 {[%clk 01:27:20]} {[%emt
00:00:41]} O-O {[%clk 01:32:29]} {[%emt 00:00:09]} 7. O-O {[%clk 01:27:37]}
{[%emt 00:00:12]} Nbd7 {[%clk 01:32:53]} {[%emt 00:00:06]} 8. Qc2 {[%clk
01:26:08]} {[%emt 00:01:59]} c6 {[%clk 01:33:11]} {[%emt 00:00:12]} 9. Bf4
{[%clk 01:22:42]} {[%emt 00:03:56]} b6 {[%clk 01:31:01]} {[%emt 00:02:40]} 10.
cxd5 {[%clk 01:20:56]} {[%emt 00:02:17]} cxd5 {[%clk 01:31:12]} {[%emt
00:00:18]} 11. Bc7 {[%clk 01:20:51]} {[%emt 00:00:35]} Qe8 {[%clk 01:31:37]}
{[%emt 00:00:05]} 12. Nc3 {[%clk 01:18:22]} {[%emt 00:02:59]} Bb7 {[%clk
01:22:18]} {[%emt 00:09:49]} 13. Rfc1 {[%clk 01:10:54]} {[%emt 00:07:59]} a6
{[%clk 01:05:23]} {[%emt 00:17:25]} 14. Qb3 {[%clk 01:07:06]} {[%emt 00:04:17]}
b5 {[%clk 01:02:05]} {[%emt 00:03:48]} 15. a4 {[%clk 00:59:37]} {[%emt
00:07:59]} b4 {[%clk 01:00:27]} {[%emt 00:02:06]} 16. a5 {[%clk 00:59:15]}
{[%emt 00:00:54]} Bc6 {[%clk 00:49:03]} {[%emt 00:11:54]} 17. Na4 {[%clk
00:50:36]} {[%emt 00:09:10]} Bb5 {[%clk 00:40:45]} {[%emt 00:08:47]} 18. Nb6
{[%clk 00:48:41]} {[%emt 00:02:24]} Ra7 {[%clk 00:37:33]} {[%emt 00:03:42]} 19.
Ne5 {[%clk 00:38:39]} {[%emt 00:10:32]} Nc5 {[%clk 00:28:48]} {[%emt 00:09:14]}
20. dxc5 {[%clk 00:37:19]} {[%emt 00:01:51]} Rxc7 {[%clk 00:27:29]} {[%emt
00:01:50]} 21. Qxb4 {[%clk 00:36:35]} {[%emt 00:01:14]} Bxe2 {[%clk 00:26:23]}
{[%emt 00:01:35]} 22. Qd4 {[%clk 00:35:28]} {[%emt 00:01:37]} Bb5 {[%clk
00:24:56]} {[%emt 00:01:57]} 23. b4 {[%clk 00:33:52]} {[%emt 00:02:07]} Qd8
{[%clk 00:21:09]} {[%emt 00:04:16]} 24. Bf1 {[%clk 00:29:56]} {[%emt 00:04:26]}
Bxf1 {[%clk 00:21:01]} {[%emt 00:00:37]} 25. Kxf1 {[%clk 00:30:23]} {[%emt
00:00:03]} Ne8 {[%clk 00:18:09]} {[%emt 00:03:22]} 26. b5 {[%clk 00:26:00]}
{[%emt 00:04:54]} axb5 {[%clk 00:18:12]} {[%emt 00:00:27]} 27. a6 {[%clk
00:26:10]} {[%emt 00:00:20]} Ra7 {[%clk 00:07:38]} {[%emt 00:11:03]} 28. Nc6
{[%clk 00:24:26]} {[%emt 00:02:14]} Bf6 {[%clk 00:08:03]} {[%emt 00:00:06]} 29.
Nxd8 {[%clk 00:22:42]} {[%emt 00:02:14]} Bxd4 {[%clk 00:08:27]} {[%emt
00:00:05]} 30. Nc6 {[%clk 00:23:02]} {[%emt 00:00:10]} Bxa1 {[%clk 00:08:51]}
{[%emt 00:00:06]} 31. Rxa1 {[%clk 00:22:43]} {[%emt 00:00:50]} 1-0

[Event "Chess Festival Groningen 2023 | A"]
[Site "Groningen, Netherlands"]
[Date "2023.12.26"]
[Round "5.15"]
[White "Kumar, Prajit Sai"]
[Black "Nevednichy, Vladislav"]
[Result "0-1"]
[TimeControl "90min/40moves + 30min + 30sec/move"]
[WhiteElo "2172"]
[BlackElo "2452"]

1. e4 {[%clk 01:30:27]} {[%emt 00:00:33]} c6 {[%clk 01:29:36]} {[%emt
00:01:25]} 2. d4 {[%clk 01:28:52]} {[%emt 00:02:04]} d5 {[%clk 01:30:03]}
{[%emt 00:00:04]} 3. e5 {[%clk 01:28:29]} {[%emt 00:00:52]} Bf5 {[%clk
01:30:07]} {[%emt 00:00:25]} 4. h4 {[%clk 01:28:02]} {[%emt 00:00:58]} h6
{[%clk 01:29:41]} {[%emt 00:00:57]} 5. g4 {[%clk 01:26:39]} {[%emt 00:01:53]}
Bd7 {[%clk 01:29:48]} {[%emt 00:00:23]} 6. Nc3 {[%clk 01:23:51]} {[%emt
00:03:17]} e6 {[%clk 01:21:52]} {[%emt 00:08:27]} 7. Be3 {[%clk 01:21:45]}
{[%emt 00:02:36]} h5 {[%clk 01:21:13]} {[%emt 00:01:10]} 8. gxh5 {[%clk
01:19:45]} {[%emt 00:02:29]} Nh6 {[%clk 01:21:32]} {[%emt 00:00:11]} 9. Bd3
{[%clk 01:09:12]} {[%emt 00:11:02]} c5 {[%clk 01:17:34]} {[%emt 00:04:29]} 10.
dxc5 {[%clk 01:07:15]} {[%emt 00:02:27]} Nc6 {[%clk 01:17:41]} {[%emt
00:00:24]} 11. Nf3 {[%clk 01:02:52]} {[%emt 00:04:52]} Ng4 {[%clk 01:16:19]}
{[%emt 00:01:52]} 12. Qe2 {[%clk 00:59:57]} {[%emt 00:03:26]} Nxe3 {[%clk
01:12:21]} {[%emt 00:04:28]} 13. Qxe3 {[%clk 00:54:11]} {[%emt 00:06:16]} d4
{[%clk 01:07:00]} {[%emt 00:05:51]} 14. Nxd4 {[%clk 00:53:47]} {[%emt
00:00:53]} Nxd4 {[%clk 01:04:23]} {[%emt 00:03:08]} 15. Qxd4 {[%clk 00:54:09]}
{[%emt 00:00:08]} Bc6 {[%clk 01:04:50]} {[%emt 00:00:03]} 16. Qxd8+ {[%clk
00:53:09]} {[%emt 00:01:30]} Rxd8 {[%clk 01:05:17]} {[%emt 00:00:03]} 17. Rh3
{[%clk 00:40:17]} {[%emt 00:13:21]} Rxh5 {[%clk 01:04:47]} {[%emt 00:01:00]} 18.
f4 {[%clk 00:40:12]} {[%emt 00:00:35]} Bxc5 {[%clk 01:02:53]} {[%emt 00:02:24]}
19. O-O-O {[%clk 00:39:48]} {[%emt 00:00:54]} Be7 {[%clk 00:47:46]} {[%emt
00:15:37]} 20. Be4 {[%clk 00:32:19]} {[%emt 00:08:00]} g5 {[%clk 00:44:54]}
{[%emt 00:03:23]} 21. Rxd8+ {[%clk 00:30:10]} {[%emt 00:02:39]} Bxd8 {[%clk
00:45:17]} {[%emt 00:00:07]} 22. Bxc6+ {[%clk 00:26:05]} {[%emt 00:04:34]} bxc6
{[%clk 00:43:15]} {[%emt 00:02:32]} 23. fxg5 {[%clk 00:26:32]} {[%emt
00:00:03]} Bxg5+ {[%clk 00:43:14]} {[%emt 00:00:30]} 24. Kd1 {[%clk 00:26:57]}
{[%emt 00:00:04]} Bf4 {[%clk 00:41:49]} {[%emt 00:01:54]} 25. Ke2 {[%clk
00:23:22]} {[%emt 00:04:06]} Bxe5 {[%clk 00:41:53]} {[%emt 00:00:26]} 26. b4
{[%clk 00:17:50]} {[%emt 00:06:03]} Ke7 {[%clk 00:39:24]} {[%emt 00:02:58]} 27.
Ne4 {[%clk 00:16:34]} {[%emt 00:01:45]} f5 {[%clk 00:38:29]} {[%emt 00:01:24]}
28. Ng5 {[%clk 00:15:30]} {[%emt 00:01:35]} Bd6 {[%clk 00:24:34]} {[%emt
00:14:26]} 29. a3 {[%clk 00:14:15]} {[%emt 00:01:45]} Bf4 {[%clk 00:21:51]}
{[%emt 00:03:12]} 30. Rc3 {[%clk 00:10:33]} {[%emt 00:04:13]} Rxh4 {[%clk
00:21:45]} {[%emt 00:00:35]} 31. Nf3 {[%clk 00:10:55]} {[%emt 00:00:08]} Rg4
{[%clk 00:20:51]} {[%emt 00:01:23]} 32. Rxc6 {[%clk 00:11:22]} {[%emt
00:00:05]} Kd7 {[%clk 00:17:47]} {[%emt 00:03:34]} 33. Ra6 {[%clk 00:10:34]}
{[%emt 00:01:18]} Bb8 {[%clk 00:18:04]} {[%emt 00:00:13]} 34. c3 {[%clk
00:09:01]} {[%emt 00:02:03]} e5 {[%clk 00:14:46]} {[%emt 00:03:47]} 35. Ra5
{[%clk 00:04:48]} {[%emt 00:04:45]} Ke6 {[%clk 00:14:33]} {[%emt 00:00:41]} 36.
a4 {[%clk 00:04:48]} {[%emt 00:00:32]} Rg2+ {[%clk 00:14:06]} {[%emt 00:00:56]}
37. Kf1 {[%clk 00:04:38]} {[%emt 00:00:40]} Rc2 {[%clk 00:11:49]} {[%emt
00:02:47]} 38. Ng5+ {[%clk 00:04:42]} {[%emt 00:00:26]} Kf6 {[%clk 00:11:27]}
{[%emt 00:00:50]} 39. Nh7+ {[%clk 00:05:10]} {[%emt 00:00:04]} Kg7 {[%clk
00:08:16]} {[%emt 00:03:41]} 40. Rb5 {[%clk 00:05:20]} {[%emt 00:00:20]} Kxh7
{[%clk 00:03:04]} {[%emt 00:05:43]} 41. Rxb8 {[%clk 00:05:11]} {[%emt
00:00:38]} Rxc3 {[%clk 00:03:32]} {[%emt 00:00:02]} 42. Rb5 {[%clk 00:29:44]}
{[%emt 00:05:57]} Re3 {[%clk 00:33:38]} {[%emt 00:00:23]} 43. Rb7+ {[%clk
00:29:05]} {[%emt 00:01:09]} Kg6 {[%clk 00:34:04]} {[%emt 00:00:04]} 44. Rxa7
{[%clk 00:29:27]} {[%emt 00:00:08]} Rb3 {[%clk 00:33:26]} {[%emt 00:01:08]} 45.
b5 {[%clk 00:28:58]} {[%emt 00:00:59]} f4 {[%clk 00:33:16]} {[%emt 00:00:40]}
46. Rc7 {[%clk 00:22:04]} {[%emt 00:07:24]} Kf5 {[%clk 00:28:16]} {[%emt
00:05:30]} 47. Rc4 {[%clk 00:19:12]} {[%emt 00:03:22]} e4 {[%clk 00:21:52]}
{[%emt 00:06:53]} 48. Rc5+ {[%clk 00:07:20]} {[%emt 00:12:23]} Kg4 {[%clk
00:22:02]} {[%emt 00:00:19]} 49. a5 {[%clk 00:07:47]} {[%emt 00:00:04]} Kf3
{[%clk 00:19:41]} {[%emt 00:02:50]} 50. Kg1 {[%clk 00:07:39]} {[%emt 00:00:38]}
e3 {[%clk 00:14:07]} {[%emt 00:06:05]} 51. a6 {[%clk 00:06:29]} {[%emt
00:01:40]} Rb1+ {[%clk 00:14:01]} {[%emt 00:00:36]} 52. Kh2 {[%clk 00:06:50]}
{[%emt 00:00:09]} Ra1 {[%clk 00:11:40]} {[%emt 00:02:50]} 53. Re5 {[%clk
00:05:52]} {[%emt 00:01:29]} e2 {[%clk 00:10:05]} {[%emt 00:02:04]} 54. Re8
{[%clk 00:03:51]} {[%emt 00:02:31]} Kf2 {[%clk 00:10:13]} {[%emt 00:00:22]} 55.
Kh3 {[%clk 00:04:11]} {[%emt 00:00:11]} f3 {[%clk 00:09:57]} {[%emt 00:00:46]}
56. Kg4 {[%clk 00:04:30]} {[%emt 00:00:11]} Ra4+ {[%clk 00:10:16]} {[%emt
00:00:11]} 57. Kf5 {[%clk 00:03:45]} {[%emt 00:01:15]} e1=Q {[%clk 00:10:40]}
{[%emt 00:00:07]} 58. Rxe1 {[%clk 00:04:04]} {[%emt 00:00:10]} Kxe1 {[%clk
00:11:08]} {[%emt 00:00:02]} 0-1

[Event "Chess Festival Groningen 2023 | A"]
[Site "Groningen, Netherlands"]
[Date "2023.12.26"]
[Round "5.16"]
[White "Ritzerveld, Noah"]
[Black "Van Foreest, Machteld"]
[Result "0-1"]
[TimeControl "90min/40moves + 30min + 30sec/move"]
[WhiteElo "1997"]
[BlackElo "2344"]

1. e4 {[%clk 01:30:57]} {[%emt 00:00:02]} c6 {[%clk 01:30:41]} {[%emt
00:00:20]} 2. d4 {[%clk 01:31:12]} {[%emt 00:00:15]} d5 {[%clk 01:31:08]}
{[%emt 00:00:03]} 3. Nc3 {[%clk 01:31:35]} {[%emt 00:00:07]} dxe4 {[%clk
01:31:35]} {[%emt 00:00:04]} 4. Nxe4 {[%clk 01:31:59]} {[%emt 00:00:07]} Nf6
{[%clk 01:32:03]} {[%emt 00:00:02]} 5. Nxf6+ {[%clk 01:32:18]} {[%emt
00:00:11]} exf6 {[%clk 01:32:30]} {[%emt 00:00:03]} 6. c3 {[%clk 01:32:32]}
{[%emt 00:00:16]} Bd6 {[%clk 01:32:57]} {[%emt 00:00:03]} 7. Bd3 {[%clk
01:32:56]} {[%emt 00:00:05]} O-O {[%clk 01:33:22]} {[%emt 00:00:05]} 8. Qc2
{[%clk 01:33:20]} {[%emt 00:00:06]} c5 {[%clk 01:33:41]} {[%emt 00:00:12]} 9.
dxc5 {[%clk 01:22:38]} {[%emt 00:11:12]} Bxc5 {[%clk 01:33:38]} {[%emt
00:00:33]} 10. Bf4 {[%clk 01:21:06]} {[%emt 00:02:01]} g6 {[%clk 01:26:47]}
{[%emt 00:07:21]} 11. O-O-O {[%clk 01:19:56]} {[%emt 00:01:40]} Qb6 {[%clk
01:26:15]} {[%emt 00:01:02]} 12. h4 {[%clk 01:14:03]} {[%emt 00:06:24]} Be6
{[%clk 01:20:22]} {[%emt 00:06:24]} 13. h5 {[%clk 01:00:07]} {[%emt 00:14:26]}
g5 {[%clk 01:17:22]} {[%emt 00:03:30]} 14. Bxh7+ {[%clk 00:58:33]} {[%emt
00:02:04]} Kh8 {[%clk 01:17:30]} {[%emt 00:00:22]} 15. Bg3 {[%clk 00:57:06]}
{[%emt 00:01:56]} Na6 {[%clk 01:08:59]} {[%emt 00:09:02]} 16. Nf3 {[%clk
00:53:31]} {[%emt 00:04:04]} Rac8 {[%clk 01:06:57]} {[%emt 00:02:32]} 17. a3
{[%clk 00:44:42]} {[%emt 00:09:20]} Bb3 {[%clk 00:59:59]} {[%emt 00:07:27]} 18.
Qf5 {[%clk 00:44:48]} {[%emt 00:00:24]} Bxd1 {[%clk 00:57:38]} {[%emt
00:02:51]} 19. Nxg5 {[%clk 00:43:18]} {[%emt 00:02:00]} Bxa3 {[%clk 00:48:52]}
{[%emt 00:09:16]} 20. Nxf7+ {[%clk 00:34:29]} {[%emt 00:09:19]} Rxf7 {[%clk
00:49:14]} {[%emt 00:00:08]} 21. Qxc8+ {[%clk 00:34:25]} {[%emt 00:00:35]} Rf8
{[%clk 00:48:51]} {[%emt 00:00:53]} 22. Qc4 {[%clk 00:31:28]} {[%emt 00:03:26]}
Qxb2+ {[%clk 00:48:46]} {[%emt 00:00:35]} 23. Kxd1 {[%clk 00:31:52]} {[%emt
00:00:06]} Rd8+ {[%clk 00:47:14]} {[%emt 00:02:03]} 24. Bd3 {[%clk 00:32:12]}
{[%emt 00:00:09]} Nc5 {[%clk 00:47:33]} {[%emt 00:00:11]} 0-1

[Event "Chess Festival Groningen 2023 | A"]
[Site "Groningen, Netherlands"]
[Date "2023.12.26"]
[Round "5.17"]
[White "Nagarkatte, Vedant"]
[Black "Kanyamarala, Trisha"]
[Result "1-0"]
[TimeControl "90min/40moves + 30min + 30sec/move"]
[WhiteFideId "25636227"]
[WhiteElo "2320"]
[BlackElo "2184"]

1. e4 {[%clk 01:30:58]} c5 {[%clk 01:30:47]} {[%emt 00:00:14]} 2. Nf3 {[%clk
01:31:25]} {[%emt 00:00:03]} d6 {[%clk 01:31:05]} {[%emt 00:00:11]} 3. d4
{[%clk 01:31:52]} {[%emt 00:00:04]} cxd4 {[%clk 01:31:26]} {[%emt 00:00:09]} 4.
Nxd4 {[%clk 01:32:17]} {[%emt 00:00:04]} Nf6 {[%clk 01:31:45]} {[%emt
00:00:12]} 5. Nc3 {[%clk 01:32:43]} {[%emt 00:00:05]} Nc6 {[%clk 01:31:48]}
{[%emt 00:00:26]} 6. Bc4 {[%clk 01:33:07]} {[%emt 00:00:06]} e6 {[%clk
01:31:17]} {[%emt 00:01:01]} 7. Be3 {[%clk 01:33:32]} {[%emt 00:00:05]} a6
{[%clk 01:29:49]} {[%emt 00:01:58]} 8. Qe2 {[%clk 01:33:57]} {[%emt 00:00:05]}
Bd7 {[%clk 01:26:05]} {[%emt 00:04:15]} 9. O-O-O {[%clk 01:34:19]} {[%emt
00:00:08]} b5 {[%clk 01:20:40]} {[%emt 00:05:54]} 10. Bb3 {[%clk 01:32:13]}
{[%emt 00:02:36]} Qa5 {[%clk 01:13:55]} {[%emt 00:07:15]} 11. Nd5 {[%clk
01:18:28]} {[%emt 00:14:16]} Nxd4 {[%clk 01:08:34]} {[%emt 00:05:50]} 12. Nxf6+
{[%clk 01:17:41]} {[%emt 00:01:17]} gxf6 {[%clk 01:08:57]} {[%emt 00:00:08]} 13.
Bxd4 {[%clk 01:18:04]} {[%emt 00:00:06]} Be7 {[%clk 01:06:40]} {[%emt
00:02:46]} 14. Qh5 {[%clk 01:08:59]} {[%emt 00:09:35]} Qc7 {[%clk 01:01:04]}
{[%emt 00:06:07]} 15. f4 {[%clk 01:05:07]} {[%emt 00:04:23]} Rf8 {[%clk
00:51:58]} {[%emt 00:09:36]} 16. f5 {[%clk 00:41:35]} {[%emt 00:24:02]} O-O-O
{[%clk 00:47:07]} {[%emt 00:05:20]} 17. Qxh7 {[%clk 00:36:54]} {[%emt
00:05:11]} Rde8 {[%clk 00:45:30]} {[%emt 00:02:07]} 18. Qh5 {[%clk 00:28:24]}
{[%emt 00:09:01]} a5 {[%clk 00:41:47]} {[%emt 00:04:13]} 19. a3 {[%clk
00:28:26]} {[%emt 00:00:28]} Kb8 {[%clk 00:39:40]} {[%emt 00:02:36]} 20. Qf3
{[%clk 00:28:09]} {[%emt 00:00:48]} Rc8 {[%clk 00:38:20]} {[%emt 00:01:49]} 21.
Rd2 {[%clk 00:24:31]} {[%emt 00:04:08]} Qb7 {[%clk 00:29:38]} {[%emt 00:09:12]}
22. Re1 {[%clk 00:11:53]} {[%emt 00:13:08]} Bd8 {[%clk 00:28:46]} {[%emt
00:01:22]} 23. Red1 {[%clk 00:10:22]} {[%emt 00:02:01]} a4 {[%clk 00:25:58]}
{[%emt 00:03:18]} 24. Ba2 {[%clk 00:09:17]} {[%emt 00:01:35]} Ba5 {[%clk
00:24:46]} {[%emt 00:01:41]} 25. c3 {[%clk 00:09:33]} {[%emt 00:00:14]} b4
{[%clk 00:22:03]} {[%emt 00:03:13]} 26. axb4 {[%clk 00:09:57]} {[%emt
00:00:06]} Bxb4 {[%clk 00:21:45]} {[%emt 00:00:48]} 27. Kb1 {[%clk 00:09:04]}
{[%emt 00:01:24]} Ba5 {[%clk 00:20:36]} {[%emt 00:01:39]} 28. Bxf6 {[%clk
00:04:42]} {[%emt 00:04:52]} Bc6 {[%clk 00:20:26]} {[%emt 00:00:40]} 29. Ka1
{[%clk 00:03:21]} {[%emt 00:01:51]} Bxe4 {[%clk 00:19:51]} {[%emt 00:01:05]} 30.
Qg3 {[%clk 00:03:23]} {[%emt 00:00:27]} Bc7 {[%clk 00:18:56]} {[%emt 00:01:25]}
31. Rd4 {[%clk 00:03:17]} {[%emt 00:00:36]} d5 {[%clk 00:14:41]} {[%emt
00:04:45]} 32. Be5 {[%clk 00:03:41]} {[%emt 00:00:06]} Qc6 {[%clk 00:14:00]}
{[%emt 00:01:10]} 33. Rb4+ {[%clk 00:01:47]} {[%emt 00:02:25]} Ka8 {[%clk
00:14:21]} {[%emt 00:00:09]} 34. Rdd4 {[%clk 00:01:36]} {[%emt 00:00:41]} Ba5
{[%clk 00:10:00]} {[%emt 00:04:52]} 35. Rxa4 {[%clk 00:02:04]} {[%emt
00:00:01]} Qb5 {[%clk 00:10:21]} {[%emt 00:00:09]} 36. Qe1 {[%clk 00:01:58]}
{[%emt 00:00:36]} Bc2 {[%clk 00:09:53]} {[%emt 00:00:58]} 37. Ra3 {[%clk
00:02:20]} {[%emt 00:00:08]} Kb7 {[%clk 00:09:03]} {[%emt 00:01:20]} 38. Qc1
{[%clk 00:02:05]} {[%emt 00:00:45]} Bb6 {[%clk 00:06:54]} {[%emt 00:02:40]} 39.
Qxc2 {[%clk 00:02:21]} {[%emt 00:00:14]} Ra8 {[%clk 00:06:20]} {[%emt
00:01:03]} 40. Rb4 {[%clk 00:02:24]} {[%emt 00:00:27]} Qf1+ {[%clk 00:06:28]}
{[%emt 00:00:23]} 41. Qb1 {[%clk 00:02:52]} {[%emt 00:00:01]} Qxg2 {[%clk
00:05:42]} {[%emt 00:01:15]} 42. Bd4 {[%clk 00:03:14]} {[%emt 00:00:08]} 1-0